[Event "Titled Tuesday Blitz May 30 Early 2023"]
[White "Sethuraman, S.P."]
[Black "iHateNAJDORF"]
[WhiteFideId "5021596"]
[WhiteElo "2543"]
[BlackElo "2632"]
[Result "1-0"]
[Round "09"]
[TimeControl "180+2"]
[Date "2023.05.30"]
[WhiteClock "0:00:56"]
[BlackClock "0:00:03"]

1. c4 {[%clk 0:03:00]}  e5 {[%clk 0:02:58]} 2. Nc3 {[%clk 0:03:01]}  Bb4 {[%clk 0:02:58]} 3. Nd5 {[%clk 0:03:00]}  Be7 {[%clk 0:02:58]} 4. Nf3 {[%clk 0:02:59]}  Nc6 {[%clk 0:02:58]} 5. d4 {[%clk 0:02:57]}  exd4 {[%clk 0:02:59]} 6. Nxd4 {[%clk 0:02:56]}  Nxd4 {[%clk 0:02:48]} 7. Qxd4 {[%clk 0:02:56]}  Nf6 {[%clk 0:02:49]} 8. Nxe7 {[%clk 0:02:55]}  Qxe7 {[%clk 0:02:50]} 9. Bg5 {[%clk 0:02:54]}  d6 {[%clk 0:02:49]} 10. e3 {[%clk 0:02:53]}  Qe5 {[%clk 0:02:45]} 11. Bxf6 {[%clk 0:02:50]}  Qxf6 {[%clk 0:02:39]} 12. Qxf6 {[%clk 0:02:48]}  gxf6 {[%clk 0:02:40]} 13. O-O-O {[%clk 0:02:49]}  Be6 {[%clk 0:02:39]} 14. Rd4 {[%clk 0:02:48]}  O-O-O {[%clk 0:02:34]} 15. Rf4 {[%clk 0:02:46]}  f5 {[%clk 0:02:28]} 16. Bd3 {[%clk 0:02:43]}  d5 {[%clk 0:02:21]} 17. Bxf5 {[%clk 0:02:37]}  dxc4 {[%clk 0:02:14]} 18. Bxe6+ {[%clk 0:02:37]}  fxe6 {[%clk 0:02:15]} 19. Rxc4 {[%clk 0:02:38]}  Rhf8 {[%clk 0:01:50]} 20. f4 {[%clk 0:02:37]}  e5 {[%clk 0:01:43]} 21. Rd1 {[%clk 0:02:28]}  Rde8 {[%clk 0:01:43]} 22. Re4 {[%clk 0:02:13]}  h5 {[%clk 0:01:39]} 23. Rd5 {[%clk 0:02:10]}  exf4 {[%clk 0:01:37]} 24. Rxe8+ {[%clk 0:02:09]}  Rxe8 {[%clk 0:01:38]} 25. exf4 {[%clk 0:02:10]}  Re1+ {[%clk 0:01:33]} 26. Kd2 {[%clk 0:02:08]}  Rg1 {[%clk 0:01:30]} 27. Rg5 {[%clk 0:02:07]}  h4 {[%clk 0:01:27]} 28. Ke3 {[%clk 0:02:01]}  Rh1 {[%clk 0:01:22]} 29. h3 {[%clk 0:02:00]}  Ra1 {[%clk 0:01:19]} 30. Ra5 {[%clk 0:01:50]}  a6 {[%clk 0:01:16]} 31. Kf3 {[%clk 0:01:45]}  Rf1+ {[%clk 0:01:13]} 32. Kg4 {[%clk 0:01:44]}  Rf2 {[%clk 0:01:06]} 33. Kxh4 {[%clk 0:01:43]}  Rxg2 {[%clk 0:01:04]} 34. b3 {[%clk 0:01:44]}  Kd7 {[%clk 0:01:03]} 35. Re5 {[%clk 0:01:31]}  Rxa2 {[%clk 0:01:02]} 36. f5 {[%clk 0:01:31]}  Rg2 {[%clk 0:00:57]} 37. Kh5 {[%clk 0:01:25]}  Rg3 {[%clk 0:00:52]} 38. h4 {[%clk 0:01:25]}  Rxb3 {[%clk 0:00:52]} 39. f6 {[%clk 0:01:25]}  Rf3 {[%clk 0:00:49]} 40. Kg6 {[%clk 0:01:25]}  Rg3+ {[%clk 0:00:40]} 41. Kh7 {[%clk 0:01:24]}  Rf3 {[%clk 0:00:37]} 42. Kg7 {[%clk 0:01:24]}  Kd6 {[%clk 0:00:35]} 43. Rg5 {[%clk 0:01:11]}  Ke6 {[%clk 0:00:32]} 44. Rg1 {[%clk 0:01:08]}  c5 {[%clk 0:00:28]} 45. Re1+ {[%clk 0:01:08]}  Kf5 {[%clk 0:00:25]} 46. f7 {[%clk 0:01:06]}  Kg4 {[%clk 0:00:23]} 47. f8=Q {[%clk 0:01:05]}  Rxf8 {[%clk 0:00:19]} 48. Kxf8 {[%clk 0:01:06]}  Kxh4 {[%clk 0:00:20]} 49. Ke7 {[%clk 0:01:06]}  Kg3 {[%clk 0:00:15]} 50. Kd6 {[%clk 0:01:06]}  c4 {[%clk 0:00:14]} 51. Kc5 {[%clk 0:01:06]}  b5 {[%clk 0:00:13]} 52. Kb4 {[%clk 0:01:05]}  Kf2 {[%clk 0:00:12]} 53. Re6 {[%clk 0:01:05]}  Kf3 {[%clk 0:00:08]} 54. Rxa6 {[%clk 0:01:03]}  Ke4 {[%clk 0:00:06]} 55. Rc6 {[%clk 0:01:02]}  Kd3 {[%clk 0:00:04]} 56. Kxb5 {[%clk 0:00:57]}  c3 {[%clk 0:00:04]} 57. Kb4 {[%clk 0:00:58]}  c2 {[%clk 0:00:03]} 58. Kb3 {[%clk 0:00:58]}  Kd4 {[%clk 0:00:02]} 59. Rxc2 {[%clk 0:00:56]}  Kd5 {[%clk 0:00:03]} 1-0


[Site "https://www.chess.com"]

[Event "Titled Tuesday Blitz May 30 Early 2023"]
[White "Bodnaruk, Anastasia"]
[Black "Kukhmazov, Arsen"]
[WhiteFideId "4181751"]
[BlackFideId "24108260"]
[WhiteElo "2304"]
[BlackElo "2396"]
[Result "0-1"]
[Round "09"]
[TimeControl "180+2"]
[Date "2023.05.30"]
[WhiteClock "0:00:15"]
[BlackClock "0:00:44"]

1. e4 {[%clk 0:03:00]}  e5 {[%clk 0:02:58]} 2. Nf3 {[%clk 0:03:00]}  Nc6 {[%clk 0:02:58]} 3. Bb5 {[%clk 0:03:00]}  a6 {[%clk 0:02:58]} 4. Ba4 {[%clk 0:03:00]}  Nf6 {[%clk 0:02:59]} 5. O-O {[%clk 0:03:00]}  Nxe4 {[%clk 0:02:59]} 6. d4 {[%clk 0:02:57]}  b5 {[%clk 0:03:00]} 7. Bb3 {[%clk 0:02:57]}  d5 {[%clk 0:03:00]} 8. dxe5 {[%clk 0:02:55]}  Be6 {[%clk 0:03:00]} 9. c3 {[%clk 0:02:53]}  Bc5 {[%clk 0:03:00]} 10. Bc2 {[%clk 0:02:40]}  O-O {[%clk 0:02:57]} 11. Nbd2 {[%clk 0:02:40]}  Nxf2 {[%clk 0:02:57]} 12. Rxf2 {[%clk 0:02:40]}  f6 {[%clk 0:02:57]} 13. exf6 {[%clk 0:02:35]}  Bxf2+ {[%clk 0:02:44]} 14. Kxf2 {[%clk 0:02:34]}  Qxf6 {[%clk 0:02:44]} 15. Nf1 {[%clk 0:02:15]}  Ne5 {[%clk 0:02:44]} 16. Ng3 {[%clk 0:01:55]}  Bg4 {[%clk 0:02:36]} 17. Qxd5+ {[%clk 0:01:46]}  Kh8 {[%clk 0:02:37]} 18. Qe4 {[%clk 0:01:29]}  g6 {[%clk 0:02:37]} 19. Bh6 {[%clk 0:01:23]}  Nxf3 {[%clk 0:02:27]} 20. gxf3 {[%clk 0:01:19]}  Bxf3 {[%clk 0:02:27]} 21. Qd4 {[%clk 0:01:18]}  Be4+ {[%clk 0:01:59]} 22. Ke3 {[%clk 0:01:05]}  Bxc2 {[%clk 0:01:45]} 23. Bxf8 {[%clk 0:01:05]}  Rxf8 {[%clk 0:01:43]} 24. Rf1 {[%clk 0:01:00]}  Qxd4+ {[%clk 0:01:42]} 25. Kxd4 {[%clk 0:01:00]}  Rd8+ {[%clk 0:01:11]} 26. Kc5 {[%clk 0:01:00]}  Rd2 {[%clk 0:01:12]} 27. Kc6 {[%clk 0:00:49]}  Rxh2 {[%clk 0:01:03]} 28. Kxc7 {[%clk 0:00:50]}  h5 {[%clk 0:01:03]} 29. Kb6 {[%clk 0:00:38]}  h4 {[%clk 0:01:00]} 30. Nh1 {[%clk 0:00:39]}  Bd3 {[%clk 0:00:49]} 31. Rd1 {[%clk 0:00:37]}  Be4 {[%clk 0:00:49]} 32. Kxa6 {[%clk 0:00:33]}  Rxh1 {[%clk 0:00:48]} 33. Rd4 {[%clk 0:00:30]}  Re1 {[%clk 0:00:43]} 34. Rd8+ {[%clk 0:00:19]}  Kg7 {[%clk 0:00:43]} 35. Rd7+ {[%clk 0:00:20]}  Kh6 {[%clk 0:00:43]} 36. Rd8 {[%clk 0:00:15]}  g5 {[%clk 0:00:44]} 0-1


[Site "https://www.chess.com"]

[Event "Titled Tuesday Blitz May 30 Early 2023"]
[White "Quintiliano Pinto, Renato R."]
[Black "Shukhman, Anna"]
[WhiteFideId "2117568"]
[BlackFideId "54180058"]
[WhiteElo "2459"]
[BlackElo "2235"]
[Result "1-0"]
[Round "09"]
[TimeControl "180+2"]
[Date "2023.05.30"]
[WhiteClock "0:00:12"]
[BlackClock "0:00:13"]

1. d4 {[%clk 0:03:00]}  Nf6 {[%clk 0:02:59]} 2. Nf3 {[%clk 0:02:57]}  g6 {[%clk 0:02:59]} 3. c4 {[%clk 0:02:55]}  Bg7 {[%clk 0:02:59]} 4. Nc3 {[%clk 0:02:54]}  d5 {[%clk 0:02:59]} 5. e3 {[%clk 0:02:54]}  O-O {[%clk 0:02:59]} 6. cxd5 {[%clk 0:02:53]}  Nxd5 {[%clk 0:02:58]} 7. Bc4 {[%clk 0:02:53]}  Nb6 {[%clk 0:02:57]} 8. Bb3 {[%clk 0:02:53]}  Bg4 {[%clk 0:02:57]} 9. h3 {[%clk 0:02:49]}  Bxf3 {[%clk 0:02:57]} 10. Qxf3 {[%clk 0:02:50]}  N8d7 {[%clk 0:02:52]} 11. a4 {[%clk 0:02:46]}  c5 {[%clk 0:02:51]} 12. a5 {[%clk 0:02:44]}  Nc8 {[%clk 0:02:50]} 13. O-O {[%clk 0:02:24]}  cxd4 {[%clk 0:02:48]} 14. exd4 {[%clk 0:02:25]}  Nd6 {[%clk 0:02:47]} 15. d5 {[%clk 0:02:19]}  Rc8 {[%clk 0:02:46]} 16. Re1 {[%clk 0:02:18]}  Ne5 {[%clk 0:02:42]} 17. Qe2 {[%clk 0:02:06]}  Nf5 {[%clk 0:02:41]} 18. Rd1 {[%clk 0:02:01]}  Qc7 {[%clk 0:02:37]} 19. Bf4 {[%clk 0:01:57]}  Kh8 {[%clk 0:02:18]} 20. Ra4 {[%clk 0:01:35]}  Rfd8 {[%clk 0:02:13]} 21. Re4 {[%clk 0:01:33]}  f6 {[%clk 0:02:13]} 22. a6 {[%clk 0:01:25]}  bxa6 {[%clk 0:02:06]} 23. Qxa6 {[%clk 0:01:23]}  Qb6 {[%clk 0:02:06]} 24. Qxb6 {[%clk 0:01:20]}  axb6 {[%clk 0:02:07]} 25. Bxe5 {[%clk 0:01:21]}  fxe5 {[%clk 0:02:06]} 26. Ba4 {[%clk 0:01:17]}  Rc5 {[%clk 0:01:53]} 27. Kf1 {[%clk 0:01:06]}  Kg8 {[%clk 0:01:30]} 28. Rd3 {[%clk 0:00:56]}  Nd6 {[%clk 0:01:23]} 29. Rb4 {[%clk 0:00:53]}  Ra8 {[%clk 0:01:04]} 30. Bb3 {[%clk 0:00:29]}  Ra1+ {[%clk 0:01:02]} 31. Rd1 {[%clk 0:00:28]}  Rxd1+ {[%clk 0:01:00]} 32. Bxd1 {[%clk 0:00:29]}  e4 {[%clk 0:00:55]} 33. Nxe4 {[%clk 0:00:25]}  Rc1 {[%clk 0:00:49]} 34. Ke2 {[%clk 0:00:24]}  Nxe4 {[%clk 0:00:32]} 35. Rxe4 {[%clk 0:00:24]}  Kf8 {[%clk 0:00:30]} 36. Rb4 {[%clk 0:00:22]}  Rb1 {[%clk 0:00:25]} 37. b3 {[%clk 0:00:20]}  Rb2+ {[%clk 0:00:24]} 38. Kf3 {[%clk 0:00:20]}  Ke8 {[%clk 0:00:20]} 39. Be2 {[%clk 0:00:19]}  Rc2 {[%clk 0:00:12]} 40. Rxb6 {[%clk 0:00:17]}  Rc3+ {[%clk 0:00:12]} 41. Ke4 {[%clk 0:00:17]}  Kd7 {[%clk 0:00:12]} 42. Rb7+ {[%clk 0:00:15]}  Kd6 {[%clk 0:00:12]} 43. Bc4 {[%clk 0:00:16]}  Rc1 {[%clk 0:00:08]} 44. Ke3 {[%clk 0:00:16]}  Bh6+ {[%clk 0:00:07]} 45. Ke2 {[%clk 0:00:16]}  Rc2+ {[%clk 0:00:08]} 46. Ke1 {[%clk 0:00:16]}  Bg7 {[%clk 0:00:08]} 47. Rb6+ {[%clk 0:00:16]}  Kd7 {[%clk 0:00:08]} 48. Bb5+ {[%clk 0:00:16]}  Kd8 {[%clk 0:00:08]} 49. Rb8+ {[%clk 0:00:16]}  Kc7 {[%clk 0:00:08]} 50. Rg8 {[%clk 0:00:16]}  Bc3+ {[%clk 0:00:08]} 51. Kf1 {[%clk 0:00:17]}  Bd4 {[%clk 0:00:09]} 52. f3 {[%clk 0:00:16]}  Rf2+ {[%clk 0:00:08]} 53. Ke1 {[%clk 0:00:17]}  Rxg2 {[%clk 0:00:09]} 54. Re8 {[%clk 0:00:17]}  Rb2 {[%clk 0:00:08]} 55. Rxe7+ {[%clk 0:00:16]}  Kd6 {[%clk 0:00:08]} 56. Re6+ {[%clk 0:00:17]}  Kxd5 {[%clk 0:00:08]} 57. Bc4+ {[%clk 0:00:17]}  Kc5 {[%clk 0:00:09]} 58. Re7 {[%clk 0:00:18]}  h5 {[%clk 0:00:07]} 59. Re6 {[%clk 0:00:19]}  Rg2 {[%clk 0:00:07]} 60. Bd3 {[%clk 0:00:18]}  Rg3 {[%clk 0:00:07]} 61. Ke2 {[%clk 0:00:17]}  Rxh3 {[%clk 0:00:07]} 62. Rxg6 {[%clk 0:00:17]}  Rh2+ {[%clk 0:00:08]} 63. Kd1 {[%clk 0:00:17]}  Kb4 {[%clk 0:00:08]} 64. Bc4 {[%clk 0:00:17]}  Kc3 {[%clk 0:00:08]} 65. Ke1 {[%clk 0:00:17]}  Rh1+ {[%clk 0:00:08]} 66. Ke2 {[%clk 0:00:17]}  h4 {[%clk 0:00:08]} 67. Rh6 {[%clk 0:00:17]}  h3 {[%clk 0:00:08]} 68. f4 {[%clk 0:00:18]}  h2 {[%clk 0:00:08]} 69. Kf3 {[%clk 0:00:18]}  Bg7 {[%clk 0:00:04]} 70. Rh3 {[%clk 0:00:17]}  Kd4 {[%clk 0:00:04]} 71. Kg2 {[%clk 0:00:17]}  Rg1+ {[%clk 0:00:04]} 72. Kxh2 {[%clk 0:00:18]}  Rc1 {[%clk 0:00:04]} 73. Rd3+ {[%clk 0:00:18]}  Ke4 {[%clk 0:00:05]} 74. Rd7 {[%clk 0:00:18]}  Bf6 {[%clk 0:00:05]} 75. Rf7 {[%clk 0:00:17]}  Bd4 {[%clk 0:00:05]} 76. f5 {[%clk 0:00:17]}  Rc2+ {[%clk 0:00:05]} 77. Kg3 {[%clk 0:00:17]}  Rc1 {[%clk 0:00:06]} 78. f6 {[%clk 0:00:16]}  Rg1+ {[%clk 0:00:06]} 79. Kh2 {[%clk 0:00:16]}  Rg6 {[%clk 0:00:06]} 80. Re7+ {[%clk 0:00:17]}  Kf4 {[%clk 0:00:06]} 81. f7 {[%clk 0:00:15]}  Rh6+ {[%clk 0:00:06]} 82. Kg2 {[%clk 0:00:15]}  Rg6+ {[%clk 0:00:06]} 83. Kf1 {[%clk 0:00:14]}  Rf6 {[%clk 0:00:07]} 84. Ke2 {[%clk 0:00:13]}  Bc5 {[%clk 0:00:06]} 85. Rd7 {[%clk 0:00:14]}  Kg5 {[%clk 0:00:07]} 86. Kd3 {[%clk 0:00:14]}  Rf3+ {[%clk 0:00:06]} 87. Kc2 {[%clk 0:00:13]}  Kg6 {[%clk 0:00:06]} 88. Rc7 {[%clk 0:00:13]}  Bb4 {[%clk 0:00:06]} 89. Rc6+ {[%clk 0:00:13]}  Kg7 {[%clk 0:00:06]} 90. Rc8 {[%clk 0:00:13]}  Rc3+ {[%clk 0:00:06]} 91. Kb2 {[%clk 0:00:14]}  Rf3 {[%clk 0:00:06]} 92. Rg8+ {[%clk 0:00:13]}  Kh6 {[%clk 0:00:07]} 93. Rg2 {[%clk 0:00:12]}  Be7 {[%clk 0:00:06]} 94. Kc2 {[%clk 0:00:13]}  Bb4 {[%clk 0:00:06]} 95. Kd1 {[%clk 0:00:12]}  Rf1+ {[%clk 0:00:05]} 96. Ke2 {[%clk 0:00:13]}  Rf6 {[%clk 0:00:05]} 97. Kd3 {[%clk 0:00:13]}  Rf4 {[%clk 0:00:05]} 98. Ke3 {[%clk 0:00:13]}  Bd6 {[%clk 0:00:05]} 99. Rd2 {[%clk 0:00:12]}  Bc7 {[%clk 0:00:03]} 100. Rd7 {[%clk 0:00:11]}  Be5 {[%clk 0:00:03]} 101. Re7 {[%clk 0:00:11]}  Bb8 {[%clk 0:00:03]} 102. Re6+ {[%clk 0:00:12]}  Kg7 {[%clk 0:00:03]} 103. Re8 {[%clk 0:00:12]}  Bd6 {[%clk 0:00:04]} 104. Re6 {[%clk 0:00:11]}  Rf6 {[%clk 0:00:04]} 105. Rxf6 {[%clk 0:00:09]}  Kxf6 {[%clk 0:00:05]} 106. Ke4 {[%clk 0:00:10]}  Ke7 {[%clk 0:00:04]} 107. Bd5 {[%clk 0:00:10]}  Kd7 {[%clk 0:00:05]} 108. Kf5 {[%clk 0:00:11]}  Bf8 {[%clk 0:00:05]} 109. Kg6 {[%clk 0:00:10]}  Kd8 {[%clk 0:00:04]} 110. Kh7 {[%clk 0:00:10]}  Kd7 {[%clk 0:00:04]} 111. Kg8 {[%clk 0:00:09]}  Ke7 {[%clk 0:00:05]} 112. b4 {[%clk 0:00:09]}  Bh6 {[%clk 0:00:05]} 113. b5 {[%clk 0:00:10]}  Bf8 {[%clk 0:00:06]} 114. b6 {[%clk 0:00:10]}  Kd6 {[%clk 0:00:06]} 115. Kxf8 {[%clk 0:00:09]}  Kxd5 {[%clk 0:00:07]} 116. b7 {[%clk 0:00:09]}  Kc6 {[%clk 0:00:08]} 117. b8=Q {[%clk 0:00:09]}  Kd5 {[%clk 0:00:09]} 118. Qd8+ {[%clk 0:00:10]}  Kc6 {[%clk 0:00:10]} 119. Ke7 {[%clk 0:00:10]}  Kc5 {[%clk 0:00:11]} 120. Qd6+ {[%clk 0:00:10]}  Kb5 {[%clk 0:00:11]} 121. f8=Q {[%clk 0:00:10]}  Kc4 {[%clk 0:00:12]} 122. Qff4+ {[%clk 0:00:10]}  Kb5 {[%clk 0:00:13]} 123. Qfe5+ {[%clk 0:00:10]}  Kc4 {[%clk 0:00:13]} 124. Qdd4+ {[%clk 0:00:11]}  Kb3 {[%clk 0:00:13]} 125. Qee3+ {[%clk 0:00:12]}  Kc2 {[%clk 0:00:13]} 126. Qdd2+ {[%clk 0:00:12]} 1-0


[Site "https://www.chess.com"]

[Event "Titled Tuesday Blitz May 30 Early 2023"]
[White "Oleksiyenko, Mykhaylo"]
[Black "Atoufi, Pedram"]
[WhiteFideId "4152417"]
[BlackFideId "12501654"]
[WhiteElo "2551"]
[BlackElo "2228"]
[Result "0-1"]
[Round "09"]
[TimeControl "180+2"]
[Date "2023.05.30"]
[WhiteClock "0:00:00"]
[BlackClock "0:00:09"]

1. e4 {[%clk 0:03:00]}  e5 {[%clk 0:02:59]} 2. Nf3 {[%clk 0:03:00]}  Nf6 {[%clk 0:02:59]} 3. Nxe5 {[%clk 0:02:58]}  Qe7 {[%clk 0:02:57]} 4. Nf3 {[%clk 0:02:53]}  Nc6 {[%clk 0:02:53]} 5. Be2 {[%clk 0:02:35]}  Nxe4 {[%clk 0:02:46]} 6. O-O {[%clk 0:02:33]}  d5 {[%clk 0:02:46]} 7. Re1 {[%clk 0:02:31]}  h6 {[%clk 0:02:42]} 8. Bb5 {[%clk 0:02:16]}  Qc5 {[%clk 0:02:29]} 9. Bxc6+ {[%clk 0:02:01]}  bxc6 {[%clk 0:02:27]} 10. d3 {[%clk 0:01:56]}  Qxf2+ {[%clk 0:02:25]} 11. Kh1 {[%clk 0:01:56]}  Bg4 {[%clk 0:02:17]} 12. dxe4 {[%clk 0:01:52]}  Bb4 {[%clk 0:02:09]} 13. exd5+ {[%clk 0:01:29]}  Bxe1 {[%clk 0:02:04]} 14. Qxe1+ {[%clk 0:01:30]}  Qxe1+ {[%clk 0:02:02]} 15. Nxe1 {[%clk 0:01:31]}  O-O-O {[%clk 0:01:53]} 16. Nc3 {[%clk 0:01:26]}  cxd5 {[%clk 0:01:47]} 17. Bf4 {[%clk 0:01:26]}  c6 {[%clk 0:01:42]} 18. Nd3 {[%clk 0:01:24]}  Bf5 {[%clk 0:01:39]} 19. Ne5 {[%clk 0:01:24]}  d4 {[%clk 0:01:34]} 20. Na4 {[%clk 0:01:19]}  d3 {[%clk 0:01:30]} 21. Nxf7 {[%clk 0:00:54]}  dxc2 {[%clk 0:01:21]} 22. Nxd8 {[%clk 0:00:53]}  Rxd8 {[%clk 0:01:16]} 23. Nc3 {[%clk 0:00:53]}  Bg4 {[%clk 0:01:13]} 24. Rg1 {[%clk 0:00:43]}  g5 {[%clk 0:01:07]} 25. Bc1 {[%clk 0:00:36]}  Kc7 {[%clk 0:00:52]} 26. h3 {[%clk 0:00:36]}  Be6 {[%clk 0:00:50]} 27. Rf1 {[%clk 0:00:27]}  Bc4 {[%clk 0:00:39]} 28. Re1 {[%clk 0:00:19]}  Bd3 {[%clk 0:00:26]} 29. Kg1 {[%clk 0:00:19]}  Rf8 {[%clk 0:00:20]} 30. Bd2 {[%clk 0:00:14]}  Kd6 {[%clk 0:00:20]} 31. Rc1 {[%clk 0:00:14]}  c5 {[%clk 0:00:20]} 32. b3 {[%clk 0:00:13]}  Rf7 {[%clk 0:00:19]} 33. Na4 {[%clk 0:00:13]}  Kd5 {[%clk 0:00:19]} 34. Nb2 {[%clk 0:00:12]}  Kd4 {[%clk 0:00:18]} 35. Nxd3 {[%clk 0:00:11]}  Kxd3 {[%clk 0:00:18]} 36. Ba5 {[%clk 0:00:12]}  Rf6 {[%clk 0:00:16]} 37. Be1 {[%clk 0:00:10]}  Ra6 {[%clk 0:00:14]} 38. Kf2 {[%clk 0:00:08]}  Rxa2 {[%clk 0:00:14]} 39. Kf3 {[%clk 0:00:07]}  Rb2 {[%clk 0:00:13]} 40. Bf2 {[%clk 0:00:07]}  Rxb3 {[%clk 0:00:13]} 41. Be3 {[%clk 0:00:08]}  Rb1 {[%clk 0:00:11]} 42. Kf2 {[%clk 0:00:08]}  a5 {[%clk 0:00:11]} 43. h4 {[%clk 0:00:08]}  gxh4 {[%clk 0:00:10]} 44. Bxh6 {[%clk 0:00:00]}  a4 {[%clk 0:00:09]} 0-1


[Site "https://www.chess.com"]

[Event "Titled Tuesday Blitz May 30 Early 2023"]
[White "Janik, Igor"]
[Black "Al-Tarboush, Ward"]
[WhiteFideId "1159259"]
[BlackFideId "7601450"]
[WhiteElo "2484"]
[BlackElo "2265"]
[Result "0-1"]
[Round "09"]
[TimeControl "180+2"]
[Date "2023.05.30"]
[WhiteClock "0:00:08"]
[BlackClock "0:00:10"]

1. e4 {[%clk 0:03:00]}  e6 {[%clk 0:02:59]} 2. Qe2 {[%clk 0:02:59]}  c5 {[%clk 0:02:57]} 3. d3 {[%clk 0:02:59]}  Nc6 {[%clk 0:02:57]} 4. Nf3 {[%clk 0:02:58]}  Nge7 {[%clk 0:02:55]} 5. g3 {[%clk 0:02:59]}  d6 {[%clk 0:02:53]} 6. Bg2 {[%clk 0:02:59]}  g6 {[%clk 0:02:53]} 7. O-O {[%clk 0:02:58]}  Bg7 {[%clk 0:02:54]} 8. a4 {[%clk 0:02:55]}  O-O {[%clk 0:02:54]} 9. c3 {[%clk 0:02:54]}  b6 {[%clk 0:02:52]} 10. Nbd2 {[%clk 0:02:52]}  Bb7 {[%clk 0:02:52]} 11. Nc4 {[%clk 0:02:49]}  Qc7 {[%clk 0:02:50]} 12. Bf4 {[%clk 0:02:47]}  e5 {[%clk 0:02:47]} 13. Bd2 {[%clk 0:02:46]}  f5 {[%clk 0:02:45]} 14. Rfd1 {[%clk 0:02:39]}  a6 {[%clk 0:02:42]} 15. Bg5 {[%clk 0:02:39]}  b5 {[%clk 0:02:40]} 16. Ne3 {[%clk 0:02:36]}  b4 {[%clk 0:02:30]} 17. Nd2 {[%clk 0:02:30]}  f4 {[%clk 0:02:24]} 18. Nd5 {[%clk 0:02:26]}  Nxd5 {[%clk 0:02:11]} 19. exd5 {[%clk 0:02:25]}  Ne7 {[%clk 0:02:09]} 20. Bxe7 {[%clk 0:02:25]}  Qxe7 {[%clk 0:02:09]} 21. Be4 {[%clk 0:02:25]}  Qf7 {[%clk 0:02:07]} 22. Qf3 {[%clk 0:02:10]}  h5 {[%clk 0:01:53]} 23. Nc4 {[%clk 0:02:10]}  Rad8 {[%clk 0:01:52]} 24. Re1 {[%clk 0:02:00]}  g5 {[%clk 0:01:49]} 25. h3 {[%clk 0:01:41]}  Bc8 {[%clk 0:01:46]} 26. g4 {[%clk 0:01:29]}  hxg4 {[%clk 0:01:46]} 27. hxg4 {[%clk 0:01:30]}  Qd7 {[%clk 0:01:41]} 28. cxb4 {[%clk 0:01:06]}  cxb4 {[%clk 0:01:37]} 29. Rec1 {[%clk 0:01:03]}  Qxg4+ {[%clk 0:01:36]} 30. Qxg4 {[%clk 0:01:03]}  Bxg4 {[%clk 0:01:37]} 31. f3 {[%clk 0:01:04]}  Bh5 {[%clk 0:01:30]} 32. Na5 {[%clk 0:00:57]}  g4 {[%clk 0:01:25]} 33. Nc6 {[%clk 0:00:57]}  Rd7 {[%clk 0:01:25]} 34. Kf2 {[%clk 0:00:50]}  Bf6 {[%clk 0:01:24]} 35. Rh1 {[%clk 0:00:50]}  g3+ {[%clk 0:01:13]} 36. Kg2 {[%clk 0:00:48]}  Be8 {[%clk 0:01:13]} 37. Rac1 {[%clk 0:00:32]}  Rc7 {[%clk 0:01:08]} 38. Rc4 {[%clk 0:00:30]}  a5 {[%clk 0:01:07]} 39. Nxa5 {[%clk 0:00:28]}  Rxc4 {[%clk 0:01:07]} 40. Nxc4 {[%clk 0:00:29]}  Bxa4 {[%clk 0:01:03]} 41. Nxd6 {[%clk 0:00:29]}  Rd8 {[%clk 0:01:02]} 42. Nc4 {[%clk 0:00:25]}  Bb3 {[%clk 0:00:47]} 43. Ra1 {[%clk 0:00:20]}  Kg7 {[%clk 0:00:23]} 44. Ra7+ {[%clk 0:00:20]}  Kh6 {[%clk 0:00:24]} 45. Ra6 {[%clk 0:00:18]}  Kg5 {[%clk 0:00:24]} 46. Nd6 {[%clk 0:00:15]}  Rd7 {[%clk 0:00:18]} 47. Bf5 {[%clk 0:00:10]}  Rc7 {[%clk 0:00:16]} 48. Ne4+ {[%clk 0:00:11]}  Kh4 {[%clk 0:00:15]} 49. Rxf6 {[%clk 0:00:09]}  Rc2+ {[%clk 0:00:15]} 50. Kf1 {[%clk 0:00:09]}  Rc1+ {[%clk 0:00:15]} 51. Ke2 {[%clk 0:00:08]}  Rc2+ {[%clk 0:00:14]} 52. Ke1 {[%clk 0:00:09]}  Rc1+ {[%clk 0:00:10]} 53. Kd2 {[%clk 0:00:08]}  Rc2+ {[%clk 0:00:10]} 54. Kd1 {[%clk 0:00:06]}  Rc6+ {[%clk 0:00:11]} 55. Ke2 {[%clk 0:00:07]}  Rxf6 {[%clk 0:00:11]} 56. Nxf6 {[%clk 0:00:07]}  Kg5 {[%clk 0:00:10]} 57. d6 {[%clk 0:00:07]}  Kxf6 {[%clk 0:00:10]} 58. d7 {[%clk 0:00:07]}  Ke7 {[%clk 0:00:10]} 59. Kf1 {[%clk 0:00:07]}  Bd5 {[%clk 0:00:09]} 60. Kg2 {[%clk 0:00:08]}  Bc6 {[%clk 0:00:10]} 61. Be4 {[%clk 0:00:08]}  Bxe4 {[%clk 0:00:09]} 62. dxe4 {[%clk 0:00:08]}  Kxd7 {[%clk 0:00:10]} 0-1


[Site "https://www.chess.com"]

[Event "Titled Tuesday Blitz May 30 Early 2023"]
[White "brm72"]
[Black "Hambleton, Aman"]
[BlackFideId "2606577"]
[WhiteElo "2623"]
[BlackElo "2511"]
[Result "0-1"]
[Round "09"]
[TimeControl "180+2"]
[Date "2023.05.30"]
[WhiteClock "0:01:32"]
[BlackClock "0:00:42"]

1. d4 {[%clk 0:03:00]}  e5 {[%clk 0:02:42]} 2. dxe5 {[%clk 0:02:59]}  Nc6 {[%clk 0:02:39]} 3. Nf3 {[%clk 0:02:58]}  Qe7 {[%clk 0:02:39]} 4. Bf4 {[%clk 0:02:38]}  Qb4+ {[%clk 0:02:39]} 5. Bd2 {[%clk 0:02:34]}  Qxb2 {[%clk 0:02:39]} 6. Bc3 {[%clk 0:02:35]}  Bb4 {[%clk 0:02:39]} 7. Bxb4 {[%clk 0:01:42]}  Nxb4 {[%clk 0:02:36]} 8. Na3 {[%clk 0:01:41]}  Qxa3 {[%clk 0:01:32]} 9. Qd2 {[%clk 0:01:40]}  Qb2 {[%clk 0:01:30]} 10. Rc1 {[%clk 0:01:40]}  Nxa2 {[%clk 0:01:28]} 11. Rd1 {[%clk 0:01:40]}  Qc3 {[%clk 0:01:19]} 12. e3 {[%clk 0:01:40]}  Qxd2+ {[%clk 0:01:17]} 13. Kxd2 {[%clk 0:01:41]}  Nb4 {[%clk 0:01:17]} 14. Bc4 {[%clk 0:01:40]}  Ne7 {[%clk 0:01:14]} 15. Kc3 {[%clk 0:01:40]}  Nbc6 {[%clk 0:01:14]} 16. Ng5 {[%clk 0:01:38]}  Nxe5 {[%clk 0:01:13]} 17. Bb3 {[%clk 0:01:39]}  h6 {[%clk 0:01:11]} 18. Ne4 {[%clk 0:01:39]}  d6 {[%clk 0:01:04]} 19. f4 {[%clk 0:01:38]}  N5c6 {[%clk 0:01:05]} 20. h3 {[%clk 0:01:37]}  Be6 {[%clk 0:01:01]} 21. g4 {[%clk 0:01:36]}  Bxb3 {[%clk 0:01:00]} 22. cxb3 {[%clk 0:01:37]}  O-O-O {[%clk 0:00:53]} 23. b4 {[%clk 0:01:37]}  a6 {[%clk 0:00:52]} 24. Rd2 {[%clk 0:01:34]}  Rhe8 {[%clk 0:00:51]} 25. Ra1 {[%clk 0:01:32]}  Nxb4 {[%clk 0:00:41]} 26. Kxb4 {[%clk 0:01:31]}  Nc6+ {[%clk 0:00:42]} 27. Kc3 {[%clk 0:01:32]}  Rxe4 {[%clk 0:00:42]} 28. Rd3 {[%clk 0:01:32]}  Rde8 {[%clk 0:00:42]} 0-1


[Site "https://www.chess.com"]